bitfinex/quotes_ETHUSD_20251215
["timestamp","ask_amount","ask_price","bid_price","bid_amount"]
[1765820212988,0.549,2962.4,2962.3,6.02427037]
[1765820213195,0.549,2962.4,2962.3,0.65676704]
[1765820213396,0.549,2962.4,2962.1,0.084]
[1765820213572,3.37416067,2963.7,2962.1,0.084]
[1765820213907,1.04017529,2963.7,2962.2,0.4594]
[1765820214087,1.0087,2963.6,2962.2,0.4594]
[1765820214413,1.0087,2963.6,2962.3,10.12726596]
[1765820214607,1.46461589,2963.6,2962.4,1.0586666]
[1765820214810,4.28989949,2963.6,2962.4,1.0586666]
[1765820215021,0.549,2963.5,2962.4,1.0586666]
[1765820215388,0.4597,2963.5,2962.3,6.75151064]
[1765820215610,0.549,2963.4,2962.3,6.75151064]
[1765820216117,1.0087,2963.4,2962.3,6.75151064]
[1765820216477,4.38325337,2963.4,2962.3,6.75151064]
[1765820216682,1.24255382,2963.3,2962.3,6.75151064]
[1765820217028,0.07081078,2963.1,2962.2,3.37582144]
[1765820217310,0.07081078,2963.1,2962.2,6.75169072]
[1765820217475,0.53051078,2963.1,2962.2,6.75169072]
[1765820218394,3.37495781,2963.0,2962.2,3.37582144]
[1765820218591,0.93954686,2962.9,2962.1,0.002]
[1765820218789,1.47005764,2962.9,2962.1,0.002]
[1765820218992,0.4597,2962.8,2962.1,0.002]
[1765820219294,0.07081078,2962.7,2962.1,0.002]
[1765820219694,1.0087,2962.6,2962.1,0.002]
[1765820220135,0.4597,2962.5,2962.1,0.002]
[1765820220292,0.53051078,2962.5,2962.1,0.002]
[1765820220496,3.37564137,2962.4,2962.1,0.002]
[1765820220693,1.18787239,2962.3,2962.1,0.002]
[1765820221139,0.4597,2962.2,2962.1,0.002]
[1765820221722,0.53051078,2962.2,2962.1,0.002]
[1765820222098,1.07951078,2962.2,2962.1,0.002]
[1765820222622,5.03585535,2962.2,2962.1,0.002]
[1765820222823,2.57396275,2962.2,2962.1,0.002]
[1765820223026,0.4777,2962.6,2962.1,0.002]
[1765820223227,0.07081078,2962.7,2962.1,0.002]
[1765820223436,0.549,2962.6,2962.1,0.002]
[1765820223745,0.1976,2963.9,2962.6,0.58047529]
[1765820224033,0.549,2963.8,2962.9,6.93797241]
[1765820224206,0.549,2963.8,2962.7,8.16411718]
[1765820224408,0.549,2963.8,2962.7,7.68981718]
[1765820224615,0.07081078,2963.0,2962.8,7.77227526]
[1765820224940,0.07081078,2963.0,2962.1,3.37591869]
[1765820224941,0.549,2962.9,2962.1,3.37591869]
[1765820225096,0.1984,2962.8,2961.8,0.002]
[1765820225299,0.1984,2962.8,2961.7,3.37633968]
[1765820225496,1.0277,2962.7,2961.8,3.3763252]
[1765820225727,0.07081078,2961.4,2961.3,3.37683934]
[1765820226030,0.62081078,2961.4,2960.9,3.37926917]
[1765820226242,0.07081078,2961.4,2961.3,3.37689528]
[1765820226431,0.61981078,2961.4,2960.9,0.002]
[1765820226833,0.07081078,2961.0,2960.9,0.002]
[1765820227146,0.07081078,2961.0,2960.4,3.3779219]
[1765820227347,0.1984,2960.9,2960.4,3.3779219]
[1765820227524,0.549,2960.8,2960.4,6.7558438]
[1765820227843,0.549,2960.7,2960.4,10.1337657]
[1765820228059,0.549,2960.7,2960.4,6.7558438]
[1765820228231,0.07081078,2960.5,2960.4,3.3779219]
[1765820228547,0.07081078,2960.5,2960.2,6.75819232]
[1765820228745,0.07081078,2960.3,2960.2,3.38009616]
[1765820229245,0.07081078,2960.6,2960.2,17.75020395]
[1765820229449,0.07081078,2960.6,2960.3,0.03378036]
[1765820229648,0.07081078,2960.6,2960.3,0.58047529]
[1765820230463,0.07081078,2960.4,2960.2,3.38009616]
[1765820230619,0.07081078,2960.4,2960.2,0.002]
[1765820230818,0.549,2960.3,2960.2,0.002]
[1765820231624,0.07081078,2960.8,2960.2,6.93997241]
[1765820231819,0.549,2960.9,2960.3,1.27447253]
[1765820232628,0.549,2960.9,2960.4,10.1337657]
[1765820233429,0.07081078,2960.8,2960.4,6.7558438]
[1765820233635,0.549,2960.9,2960.4,10.1337657]
[1765820234570,0.549,2960.9,2960.4,6.7558438]
[1765820234858,0.549,2960.9,2960.4,5.42330547]
[1765820235159,0.07081078,2960.8,2960.3,10.1360555]
[1765820236680,0.07081078,2960.8,2960.3,6.7580195]
[1765820236841,0.1984,2959.8,2959.1,0.002]
[1765820237170,0.549,2959.7,2959.1,0.002]
[1765820237495,0.549,2959.7,2959.2,6.75853787]
[1765820238445,1.0267,2959.7,2959.2,6.75853787]
[1765820238668,1.0267,2959.7,2959.1,0.002]
[1765820239654,0.07081078,2959.2,2959.1,0.002]
[1765820240447,0.54851078,2959.2,2959.1,0.002]
[1765820240837,0.07081078,2959.2,2959.1,0.002]
[1765820242574,0.1984,2960.5,2959.1,6.97376646]
[1765820242754,0.549,2960.3,2959.5,6.93797241]
[1765820244780,0.549,2960.3,2959.6,13.51533988]
[1765820245024,0.549,2960.3,2959.6,10.13650491]
[1765820245277,0.549,2960.3,2959.6,13.51533988]
[1765820245846,0.549,2960.3,2959.6,10.13650491]
[1765820246253,0.07081078,2960.2,2959.6,10.13650491]
[1765820246874,0.07081078,2960.2,2959.4,0.58047529]
[1765820247679,0.07081078,2960.2,2959.3,6.758355]
[1765820247680,0.07081078,2959.7,2959.3,6.758355]
[1765820247886,0.1984,2959.4,2959.1,0.002]
[1765820248194,0.549,2959.6,2959.2,3.37927508]
[1765820248361,1.0267,2960.3,2959.2,10.47618599]
[1765820248879,0.4777,2960.2,2959.2,10.47618599]
[1765820249481,0.07081078,2959.7,2959.2,10.47618599]
[1765820249681,0.07081078,2959.5,2959.2,6.75856678]
[1765820250084,0.549,2959.6,2959.2,10.13785848]
[1765820250671,0.001,2960.3,2959.2,16.89644188]
[1765820250999,0.001,2960.3,2959.9,6.93797241]
[1765820251874,0.07181078,2960.3,2959.6,13.51533988]
[1765820252177,0.07181078,2960.3,2959.7,1.35153399]
[1765820252889,0.07081078,2960.1,2959.4,6.75812664]
[1765820253182,0.07081078,2960.1,2959.4,10.13718996]
[1765820253356,0.07081078,2960.1,2959.4,6.75812664]
[1765820253685,0.07081078,2960.0,2959.4,10.13718996]
[1765820253902,0.07081078,2959.8,2959.4,6.75812664]
[1765820254192,0.07081078,2959.6,2959.4,3.37906332]
[1765820254390,0.07081078,2959.6,2959.3,3.37915449]
[1765820254999,0.07081078,2959.4,2959.1,0.002]
[1765820257063,0.07081078,2959.2,2959.1,0.002]
[1765820257501,0.56401078,2959.2,2959.1,0.002]
[1765820258065,0.07081078,2959.2,2959.1,0.002]
[1765820258779,0.56401078,2959.2,2959.1,0.002]
[1765820258985,0.56401078,2959.2,2958.2,4.017e-05]
[1765820258986,6.7588118,2959.1,2958.2,4.017e-05]
[1765820259185,0.1874,2958.7,2958.2,4.017e-05]
[1765820259592,0.4932,2958.6,2958.2,4.017e-05]
[1765820259988,0.07081078,2958.3,2958.2,4.017e-05]
[1765820260187,0.61981078,2958.3,2958.2,4.017e-05]
[1765820260386,1.11301078,2958.3,2958.2,4.017e-05]
[1765820261085,4.49333055,2958.3,2958.2,4.017e-05]
[1765820261290,4.94974468,2958.3,2958.2,4.017e-05]
[1765820261672,5.53021997,2958.3,2958.2,4.017e-05]
[1765820264286,1.56942491,2958.3,2958.2,4.017e-05]
[1765820264486,1.11301078,2958.3,2958.2,4.017e-05]
[1765820265101,0.549,2958.3,2958.2,4.017e-05]
[1765820266186,0.6806,2958.7,2958.2,4.017e-05]
[1765820266412,1.0422,2958.6,2958.2,4.017e-05]
[1765820266783,0.4932,2958.5,2958.2,4.017e-05]
[1765820267629,0.95415094,2958.5,2958.2,4.017e-05]
[1765820267917,0.4932,2958.5,2958.2,4.017e-05]
[1765820268088,0.4932,2958.4,2958.2,4.017e-05]
[1765820269417,0.549,2958.6,2958.2,4.017e-05]
[1765820270034,0.4932,2958.5,2958.2,4.017e-05]
[1765820270493,0.549,2958.6,2958.2,4.017e-05]
[1765820272112,1.0422,2958.6,2958.2,4.017e-05]
[1765820272886,0.4932,2958.5,2958.2,4.017e-05]
[1765820273115,0.4649,2958.3,2958.2,4.017e-05]
[1765820273690,0.9581,2958.3,2958.2,4.017e-05]
[1765820274207,3.92904322,2958.6,2958.2,4.017e-05]
[1765820274208,0.549,2958.6,2958.2,4.017e-05]
[1765820274519,0.4932,2958.5,2958.2,4.017e-05]
[1765820274855,0.6806,2959.5,2958.2,4.017e-05]
[1765820275123,0.548,2959.4,2958.2,4.017e-05]
[1765820275419,1.0412,2959.4,2958.2,13.52177633]
[1765820275603,1.0412,2959.4,2958.3,2.0802822]
[1765820275799,0.548,2959.4,2958.3,2.0802822]
[1765820276211,0.4932,2959.3,2958.3,2.0802822]
[1765820276417,0.4932,2959.3,2958.2,13.52177633]
[1765820276620,0.4932,2959.3,2958.2,10.14134229]
[1765820276793,0.4932,2959.3,2958.2,6.76090825]
[1765820277405,3.87243729,2959.3,2958.2,3.38047421]
[1765820277821,0.4932,2959.2,2958.2,3.38047421]
[1765820278022,0.38724373,2959.1,2958.2,4.017e-05]
[1765820278624,0.4932,2959.0,2958.2,4.017e-05]
[1765820278834,0.549,2958.9,2958.2,4.017e-05]
[1765820279401,1.0422,2958.9,2958.2,4.017e-05]
[1765820279903,0.4932,2958.8,2958.2,4.017e-05]
[1765820280326,0.549,2958.9,2958.2,4.017e-05]
[1765820280527,0.07081078,2958.7,2958.6,7.27904569]
[1765820280729,0.07081078,2959.0,2958.6,7.27904569]
[1765820281031,0.548,2958.9,2958.2,0.88804509]
[1765820281198,0.548,2958.9,2957.9,0.002]
[1765820281403,0.4649,2958.0,2957.9,0.002]
[1765820281708,0.4649,2958.0,2957.4,3.38125536]
[1765820281709,0.07081078,2957.2,2956.7,10.14643594]
[1765820281917,0.548,2957.1,2956.7,10.14643594]
[1765820282439,0.548,2957.1,2956.7,6.76428693]
[1765820282740,0.07081078,2957.2,2956.7,10.14643594]
[1765820283038,0.548,2957.1,2956.7,10.14643594]
[1765820288138,0.4744,2958.4,2956.9,0.405504]
[1765820288350,0.07081078,2958.4,2957.5,7.27904569]
[1765820288497,0.07081078,2958.2,2957.5,7.27904569]
[1765820289831,0.07081078,2958.2,2957.6,10.14335946]
[1765820290134,0.07081078,2958.2,2957.6,6.76223964]
[1765820290433,0.07081078,2958.2,2957.6,10.14335946]
[1765820291832,0.07081078,2958.2,2957.6,1.35246793]
[1765820293410,0.548,2958.3,2957.6,1.35246793]
[1765820293812,0.548,2958.3,2957.7,13.52402204]
[1765820294018,0.4744,2959.1,2958.0,7.27904569]
[1765820294214,0.548,2958.7,2958.0,7.27904569]
[1765820294549,0.548,2958.7,2958.0,8.00695026]
[1765820294713,0.548,2958.7,2958.5,7.27904569]
[1765820295110,0.07081078,2958.6,2958.0,0.72790457]
[1765820295314,0.07081078,2958.6,2958.1,0.58047529]
[1765820295514,0.07081078,2958.4,2957.7,16.90502755]
[1765820295750,0.07081078,2958.4,2957.9,0.58047529]
[1765820295974,0.548,2958.3,2958.1,6.76109664]
[1765820296251,0.548,2958.2,2958.1,3.38054832]
[1765820297344,1.477,2958.2,2957.9,3.38074125]
[1765820297522,0.07081078,2958.1,2958.0,3.38064997]
[1765820297727,1.09321078,2958.1,2957.5,0.002]
[1765820297927,0.4546,2957.9,2957.5,0.002]
[1765820298127,0.4744,2957.8,2957.5,0.002]
[1765820298459,0.07081078,2957.6,2957.5,0.002]
[1765820298951,0.61881078,2957.6,2957.5,0.002]
[1765820299942,0.07081078,2957.6,2957.5,0.002]
[1765820300145,0.61881078,2957.6,2957.5,0.002]
[1765820300328,1.09321078,2957.6,2957.5,0.002]
[1765820300523,0.61881078,2957.6,2957.5,0.002]
[1765820302128,1.07341078,2957.6,2957.5,0.002]
[1765820302525,1.54781078,2957.6,2957.5,0.002]
[1765820302731,0.61881078,2957.6,2957.5,0.002]
[1765820302930,0.07181078,2958.1,2957.5,0.002]
[1765820303132,0.548,2958.0,2957.5,0.002]
[1765820303733,0.07181078,2958.1,2957.5,0.002]
[1765820303934,0.548,2958.0,2957.5,0.002]
[1765820304830,0.4744,2957.9,2957.5,0.002]
[1765820305025,0.548,2958.0,2957.5,0.002]
[1765820305266,0.07181078,2958.1,2957.5,0.002]
[1765820305476,0.001,2958.1,2957.5,0.002]
[1765820305679,0.548,2958.0,2957.5,0.002]
[1765820306029,0.548,2957.9,2957.7,7.27904569]
[1765820306333,0.548,2957.9,2957.8,0.72790457]
[1765820306569,0.001,2958.1,2957.8,0.72790457]
[1765820306780,0.001,2958.1,2958.0,7.27904569]
[1765820306980,0.001,2958.1,2957.5,0.58247529]
[1765820307189,0.001,2958.1,2957.6,0.405504]
[1765820307466,0.001,2958.1,2957.9,7.27904569]
[1765820307673,0.001,2958.1,2958.0,0.72790457]
[1765820308036,0.001,2958.1,2958.0,4.10856717]
[1765820308648,0.001,2958.1,2958.0,5.12835308]
[1765820308853,0.001,2958.1,2958.0,5.09454646]
[1765820309446,0.548,2958.6,2958.1,0.58047529]
[1765820309953,0.07081078,2958.3,2957.6,13.52447928]
[1765820310152,0.07081078,2958.3,2957.7,0.58047529]
[1765820310453,0.07181078,2958.1,2957.6,10.14335946]
[1765820310635,0.001,2959.3,2958.1,0.58047529]
[1765820310834,0.001,2959.3,2958.9,7.27904569]
[1765820311077,0.001,2959.3,2957.6,20.28671892]
[1765820311078,0.001,2959.3,2958.5,0.58047529]
[1765820311579,0.001,2959.3,2958.9,7.27904569]
[1765820311739,0.549,2959.0,2958.9,7.27904569]
[1765820312064,0.549,2959.0,2958.9,3.37963432]
[1765820312667,0.001,2959.0,2958.9,3.37963432]
[1765820312856,0.549,2959.0,2958.9,3.37963432]
[1765820313436,0.03752192,2959.7,2958.9,11.06418401]
[1765820313636,0.001,2960.2,2959.9,0.405504]
[1765820313841,0.001,2960.2,2959.9,0.58047529]
[1765820314039,0.001,2960.2,2959.9,6.75698502]
[1765820314040,0.551,2960.2,2959.9,6.75698502]
[1765820314952,0.001,2960.2,2959.9,8.49844698]
[1765820315166,0.001,2960.2,2960.0,0.405504]
[1765820315649,0.001,2960.5,2960.0,0.98597929]
[1765820315975,0.001,2960.9,2960.5,0.98597929]
[1765820316146,0.001,2960.9,2960.8,3.78296954]
[1765820317371,0.001,2960.9,2960.8,4.49902466]
[1765820317540,0.001,2960.9,2960.8,3.37746554]
[1765820318255,0.001,2960.9,2960.5,10.1334234]
[1765820318575,0.549,2960.8,2960.5,6.7556156]
[1765820318879,1.0027,2960.8,2960.5,3.3778078]
[1765820319238,0.549,2960.8,2960.5,3.3778078]
[1765820319438,0.4537,2960.7,2960.2,3.37808125]
[1765820319639,0.4537,2960.7,2960.4,3.37790948]
[1765820319975,0.549,2960.6,2960.4,6.75583138]
[1765820320141,0.549,2960.6,2959.3,0.58047529]
[1765820320344,0.549,2960.6,2959.7,7.27904569]
[1765820320567,0.549,2960.6,2959.6,0.58047529]
[1765820320986,0.1765247,2959.6,2957.8,3.38079169]
[1765820321278,0.1765247,2959.6,2957.6,10.14335946]
[1765820321279,0.1986,2958.7,2957.6,10.14335946]
[1765820321486,0.551,2958.6,2957.9,17.62090768]
[1765820321653,0.551,2958.6,2957.9,7.27904569]
[1765820322045,0.551,2958.6,2957.6,6.76223964]
[1765820322277,0.07081078,2958.5,2957.6,1.01455521]
[1765820322546,0.551,2958.4,2957.3,7.28104569]
[1765820322964,0.4537,2958.3,2957.3,7.28104569]
[1765820323169,0.4537,2958.3,2957.3,0.00025867]
[1765820323586,0.07081078,2957.7,2957.3,0.00025867]
[1765820323751,0.1986,2957.4,2957.3,0.00025867]
[1765820323952,1.2023,2957.4,2957.3,0.00025867]
[1765820324480,0.4537,2957.3,2956.4,0.002]
[1765820324681,0.55,2957.2,2956.4,0.002]
[1765820325077,0.4537,2957.1,2956.4,0.002]
[1765820325386,0.55,2957.0,2956.4,0.002]
[1765820325746,1.0037,2956.9,2956.4,0.002]
[1765820326259,1.0037,2956.8,2956.4,0.002]
[1765820326790,3.45161644,2957.9,2956.4,0.002]
[1765820326791,0.55,2957.2,2956.7,7.25618842]
[1765820327079,0.4537,2957.9,2956.8,0.72561884]
[1765820327080,0.55,2957.1,2956.8,0.72561884]
[1765820327254,0.4537,2957.8,2956.4,0.002]
[1765820327255,0.551,2957.0,2956.4,0.002]
[1765820327460,0.551,2956.9,2956.4,0.002]
[1765820327988,0.4537,2957.7,2956.4,0.002]
[1765820328482,0.551,2957.6,2956.6,7.25618842]
[1765820328675,0.551,2957.6,2956.7,6.76429802]
[1765820328976,0.4537,2957.5,2956.7,6.76429802]
[1765820329192,4.38593415,2957.5,2956.4,0.002]
[1765820329353,1.13247529,2957.4,2956.5,3.38230269]
[1765820329553,1.03417529,2957.4,2956.4,0.002]
[1765820329763,1.0057,2957.3,2956.4,0.002]
[1765820330161,0.4537,2957.2,2956.5,3.38235424]
[1765820330363,0.552,2957.1,2956.4,0.002]
[1765820330582,0.4537,2957.0,2956.4,0.002]
[1765820331080,0.1986,2956.5,2956.4,0.002]
[1765820331658,1.2043,2956.5,2956.4,0.002]
[1765820332450,0.1986,2956.5,2956.4,0.002]
[1765820332650,1.0057,2956.5,2956.4,0.002]
[1765820333184,0.58047529,2956.4,2956.1,0.002]
[1765820333382,0.552,2956.3,2956.1,0.002]
[1765820333576,1.0057,2956.3,2956.1,0.002]
[1765820333779,0.1986,2957.3,2956.2,6.04706919]
[1765820334081,0.552,2957.2,2956.1,0.002]
[1765820334265,1.0057,2957.2,2956.1,0.002]
[1765820334586,0.07081078,2956.9,2956.1,0.002]
[1765820334881,0.4537,2956.8,2956.1,0.002]
[1765820335115,0.553,2956.7,2956.1,0.002]
[1765820335284,0.58047529,2956.5,2956.1,0.002]
[1765820335582,0.78980021,2956.4,2956.1,0.002]
[1765820335782,0.553,2956.3,2956.1,0.002]
[1765820336152,0.62381078,2956.2,2956.1,0.002]
[1765820336354,0.07081078,2956.2,2956.1,0.002]
[1765820336583,0.553,2956.2,2956.1,0.002]
[1765820337081,0.07081078,2956.9,2956.1,0.002]
[1765820337283,0.554,2956.8,2956.1,0.002]
[1765820337593,1.0077,2956.8,2956.1,0.002]
[1765820337772,0.7771577,2956.7,2956.1,0.002]
[1765820337974,1.2308577,2956.7,2956.1,0.002]
[1765820338180,1.0077,2956.6,2956.1,0.002]
[1765820338382,0.554,2956.5,2956.1,0.002]
[1765820338590,0.4537,2956.5,2956.1,0.002]
[1765820338758,0.554,2956.4,2956.1,0.002]
[1765820338977,0.4537,2956.3,2956.1,0.002]
[1765820339481,0.554,2956.2,2956.1,0.002]
[1765820339904,0.07081078,2956.6,2956.1,0.002]
[1765820340197,0.554,2956.2,2956.1,0.002]
[1765820340386,0.4685664,2956.6,2956.1,0.002]
[1765820340588,0.554,2956.5,2956.1,0.002]
[1765820340794,1.0077,2956.5,2956.1,0.002]
[1765820341004,0.4537,2956.4,2956.1,0.002]
[1765820341221,0.554,2956.3,2956.1,0.002]
[1765820341681,0.4537,2956.2,2956.1,0.002]
[1765820341872,1.23098744,2956.2,2956.1,0.002]
[1765820342697,1.78498744,2956.2,2956.1,0.002]
[1765820343223,5.23851928,2956.2,2956.1,0.002]
[1765820343386,0.53651078,2956.6,2956.1,0.002]
[1765820343701,0.554,2956.5,2956.1,0.002]
[1765820344415,0.4657,2956.4,2956.1,0.002]
[1765820344577,0.554,2956.3,2956.1,0.002]
[1765820344985,0.4657,2956.4,2956.1,0.002]
[1765820344986,0.554,2956.2,2956.1,0.002]
[1765820345184,0.4657,2956.4,2956.1,0.002]
[1765820345402,0.554,2956.2,2956.1,0.002]
[1765820346269,0.07081078,2956.6,2956.1,0.002]
[1765820346681,0.001,2957.0,2956.2,0.60510692]
[1765820346892,0.554,2956.9,2956.2,0.60510692]
[1765820347272,0.001,2957.0,2956.3,10.14781989]
[1765820347473,0.001,2957.0,2956.6,6.96338911]
[1765820347822,0.554,2956.9,2956.6,6.96338911]
[1765820348036,0.554,2956.9,2956.7,0.69633891]
[1765820348885,0.001,2957.0,2956.7,0.69633891]
[1765820349088,0.001,2957.0,2956.9,6.96338911]
[1765820349297,0.555,2957.0,2956.9,10.34530936]
[1765820349479,0.001,2957.0,2956.9,10.34530936]
[1765820349677,0.555,2957.0,2956.9,11.78767755]
[1765820350679,0.001,2957.0,2956.9,11.78767755]
[1765820350913,0.555,2957.0,2956.9,11.78767755]
[1765820351204,0.554,2957.0,2956.9,11.78767755]
[1765820351710,0.07181078,2958.2,2956.9,21.9334383]
[1765820352014,0.07181078,2958.2,2957.6,6.96338911]
[1765820352189,0.001,2958.2,2957.6,6.96338911]
[1765820352388,0.553,2958.1,2957.6,6.96338911]
[1765820352710,0.001,2958.2,2957.6,6.96338911]
[1765820353008,0.553,2958.1,2958.0,6.96338911]
[1765820353195,0.001,2958.2,2958.0,6.96338911]
[1765820353398,0.553,2958.1,2958.0,6.96338911]
[1765820353579,0.553,2958.1,2958.0,10.34405171]
[1765820353781,0.001,2958.2,2958.0,13.72471431]
[1765820354012,0.553,2958.1,2958.0,11.04039062]
[1765820354708,0.553,2958.1,2958.0,10.34405171]
[1765820354911,0.553,2958.1,2957.6,6.96338911]
[1765820355095,0.553,2958.1,2957.7,3.38098287]
[1765820355302,0.553,2958.1,2957.8,3.38083524]
[1765820355513,0.553,2958.1,2957.2,6.96338911]
[1765820355696,0.4657,2958.0,2957.3,6.76292564]
[1765820356085,0.001,2958.1,2957.6,6.96338911]
[1765820356295,0.553,2958.0,2957.6,6.96338911]
[1765820356580,0.001,2958.1,2957.3,6.76292564]
[1765820356780,0.001,2958.1,2957.6,6.96338911]
[1765820357116,0.553,2958.0,2957.6,6.96338911]
[1765820357283,0.001,2958.1,2957.6,6.96338911]
[1765820357616,0.553,2957.9,2957.7,3.38100551]
[1765820358038,0.001,2958.1,2957.7,6.76201102]
[1765820358210,0.001,2958.1,2958.0,6.96338911]
[1765820358713,0.553,2958.1,2958.0,6.96338911]
[1765820359609,0.553,2958.1,2958.0,10.34405171]
[1765820360354,0.001,2958.2,2958.0,13.72471431]
[1765820360647,0.001,2959.3,2958.1,1.08133315]
[1765820360809,0.552,2959.2,2958.7,6.96338911]
[1765820361012,0.001,2959.3,2958.7,6.96338911]
[1765820361248,0.552,2959.2,2958.7,6.96338911]
[1765820361812,0.4657,2959.1,2958.2,6.96338911]
[1765820362143,0.4657,2959.1,2958.3,3.38025813]
[1765820362446,0.4657,2959.1,2957.4,3.96172986]
[1765820362447,0.07081078,2958.9,2957.6,6.96338911]
[1765820362655,0.07081078,2958.9,2957.7,3.3810032]
[1765820362960,0.6495,2958.8,2957.6,6.96338911]
[1765820363424,0.1838,2958.8,2958.1,6.96338911]
[1765820363623,4.39760523,2958.7,2958.1,6.96338911]
[1765820363834,4.39760523,2958.7,2957.7,3.38093232]
[1765820363835,0.45814052,2958.6,2957.7,6.96338911]
[1765820364432,0.92384052,2958.6,2957.7,6.96338911]
[1765820364637,0.92384052,2958.6,2957.7,10.34438515]
[1765820364638,0.552,2958.5,2957.7,10.34438515]
[1765820364841,1.0177,2958.5,2957.4,10.34466722]
[1765820365017,1.0177,2958.5,2957.5,3.38117319]
[1765820365243,1.0177,2958.5,2957.4,10.34469202]
[1765820365448,1.0177,2958.5,2957.5,3.38121929]
[1765820365653,1.29634618,2958.5,2957.5,3.38121929]
[1765820365866,0.552,2958.4,2957.8,6.96338911]
[1765820366697,0.1838,2957.9,2956.6,3.38218232]
[1765820366858,0.1838,2957.9,2957.0,6.96338911]
[1765820366859,0.552,2957.8,2957.0,6.96338911]
[1765820367054,0.552,2957.8,2957.0,7.65972802]
[1765820367250,0.552,2957.8,2957.2,3.38151963]
[1765820367890,0.552,2957.8,2957.1,3.38169152]
[1765820368606,7.77948832,2957.8,2956.6,10.34563857]
[1765820368900,0.4657,2957.7,2956.8,6.96338911]
[1765820369049,0.551,2957.6,2956.9,3.3818594]
[1765820369250,0.551,2957.6,2956.8,6.96338911]
[1765820369472,0.551,2957.6,2956.6,10.34559608]
[1765820369996,0.551,2957.6,2956.7,3.38214901]
[1765820371173,3.63542137,2957.9,2956.7,3.38214901]
[1765820371472,0.4832,2958.2,2957.4,6.96338911]
[1765820371689,0.551,2958.1,2957.4,6.96338911]
[1765820371888,0.1801,2957.5,2957.4,6.96338911]
[1765820372096,1.61989082,2957.5,2956.0,0.002]
[1765820372315,0.1801,2956.6,2956.0,0.002]
[1765820372514,0.552,2956.5,2956.0,0.002]
[1765820373216,0.1801,2956.6,2956.0,6.96538911]
[1765820373415,0.552,2956.5,2956.0,10.34827235]
[1765820373574,0.552,2956.5,2956.0,6.96538911]
[1765820374180,0.552,2956.5,2956.1,6.76767098]
[1765820374407,0.552,2956.5,2956.4,6.96338911]
[1765820376089,0.552,2956.5,2956.4,10.34588133]
[1765820376295,0.552,2956.5,2956.1,3.38483549]
[1765820376296,0.552,2956.5,2956.1,0.002]
[1765820376482,1.0096,2956.5,2956.1,0.002]
[1765820376700,4.39197835,2956.5,2956.1,0.002]
[1765820377384,1.0096,2956.5,2956.1,0.002]
[1765820377694,0.552,2956.4,2956.2,6.96338911]
[1765820377898,0.552,2956.3,2956.1,0.002]
[1765820380627,1.02621078,2956.2,2956.1,0.002]
[1765820380829,0.07081078,2956.2,2956.1,0.002]
[1765820381746,1.02621078,2956.2,2956.0,0.002]
[1765820381958,0.6779,2955.9,2955.7,0.002]
[1765820382108,0.4978,2955.8,2955.7,0.002]
[1765820382445,0.4576,2955.8,2955.7,0.002]
[1765820382747,3.5631706,2955.9,2955.7,0.002]
[1765820382959,1.12061078,2955.8,2955.7,0.002]
[1765820383117,1.57821078,2955.8,2955.7,0.002]
[1765820383456,1.57821078,2955.8,2954.9,0.002]
[1765820383617,0.4576,2955.7,2954.9,0.002]
[1765820384659,0.4978,2955.3,2954.9,0.002]
[1765820384967,1.0498,2955.3,2954.9,0.002]
[1765820385129,0.552,2955.3,2954.9,0.002]
[1765820386214,0.552,2955.3,2955.2,6.96538911]
[1765820386650,0.552,2955.3,2955.2,7.66192802]
[1765820387062,0.552,2955.3,2955.2,10.34925483]
[1765820387353,0.552,2955.3,2955.2,6.96538911]
[1765820387521,0.552,2955.3,2955.2,0.002]
[1765820387932,0.552,2955.3,2954.9,0.002]
[1765820388135,3.195145,2953.2,2952.4,0.03387074]
[1765820388383,0.1801,2953.3,2951.9,3.98588154]
[1765820388384,0.1801,2952.9,2951.9,3.98588154]
[1765820388671,0.1801,2952.9,2952.8,0.002]
[1765820388871,5.39707669,2952.9,2952.8,0.002]
[1765820389188,0.58047529,2952.8,2951.9,1.02948154]
[1765820389472,13.6761056,2952.9,2950.0,3.89636687]
[1765820389473,3.705018,2952.3,2950.0,3.89636687]
[1765820389679,3.967504,2951.8,2950.0,0.50654]
[1765820389832,1.25597529,2952.2,2950.0,0.50654]
[1765820389833,6.96338911,2951.5,2950.0,0.50654]
[1765820390032,0.405504,2951.3,2950.0,0.50654]
[1765820390234,0.05,2951.3,2948.4,0.1926]
[1765820390434,0.6796,2951.2,2949.3,6.96338911]
[1765820390751,0.565,2951.2,2949.8,6.78012068]
[1765820390956,0.1146,2951.1,2949.8,3.39006034]
[1765820391152,0.405504,2951.0,2949.5,0.1926]
[1765820391351,0.6,2951.0,2949.7,6.78032532]
[1765820391662,0.565,2951.2,2949.9,6.07204295]
[1765820391863,0.565,2951.2,2949.9,0.58047529]
[1765820392362,0.565,2951.2,2949.9,6.57094295]
[1765820392575,0.405504,2951.0,2949.6,3.39028571]
[1765820392779,0.405504,2951.0,2949.2,0.6915]
[1765820392960,0.1146,2950.9,2949.3,10.67079475]
[1765820393148,0.565,2951.2,2949.6,6.07204295]
[1765820393347,0.565,2951.2,2949.4,0.4989]
[1765820393348,0.565,2951.2,2949.9,7.28312576]
[1765820393666,0.565,2951.2,2950.0,1.07937529]
[1765820394052,0.565,2951.2,2950.1,0.4989]
[1765820394380,0.565,2951.2,2949.8,0.58047529]
[1765820394685,0.565,2951.2,2949.7,1.1061043]
[1765820394838,0.97178339,2951.2,2949.9,0.58047529]
[1765820395382,0.565,2951.2,2950.0,0.4989]
[1765820396295,0.565,2951.2,2950.3,7.28312576]
[1765820396493,0.565,2951.2,2950.4,0.58047529]